[Event "CCT Chessable Masters Place D-I 2024"]
[Site "Online"]
[Date "2024.02.01"]
[Round "1"]
[White "Nakamura, Hikaru"]
[Black "Lazavik, Denis"]
[Result "0-1"]
[ECO "A28"]
[WhiteElo "2788"]
[BlackElo "2566"]
[Annotator "TA"]
[PlyCount "106"]
[EventDate "2024.01.12"]
[EventType "k.o."]
[EventCountry "NET"]
[SourceTitle "playchess.com"]
[Source "ChessBase"]
[SourceQuality "1"]
[TimeControl "600+2"]

{[%evp 38,106,-439,-508,-452,-482,-454,-448,-441,-540,-540,-532,-451,-543,-530,-543,-540,-522,-497,-556,-566,-631,-631,-664,-665,-661,-633,-857,-853,-850,-817,-950,-875,-924,-920,-916,-887,-997,-906,-1244,-911,-1268,-1276,-1343,-1324,-1310,-1318,-1684,-1700,-29982,-1179,-1296,-1291,-1193,-1133,-1714,-1663,-1469,-1280,-1533,-1586,-1847,-1827,-29977,-29978,-29986,-29984,-29988,-29985,-29989,-29984]} 1. c4 {[%emt 0:00:04]} Nf6 {[%emt 0:00:04]} 2. Nc3 {[%emt 0:00:02]} e5 {[%emt 0:00:01]} 3. a3 {[%emt 0:00:08]} d5 {[%emt 0:00:07]} 4. cxd5 {[%emt 0:00:05]} Nxd5 {[%emt 0:00:00]} 5. Nf3 {[%emt 0:00:06]} Nc6 {[%emt 0:00:03]} 6. e4 {[%emt 0:00:01]} Nf4 {[%emt 0:00:10] A28: English Opening: Four Knights Variation.} 7. d3 {[%emt 0:00:28]} Bg4 {[%emt 0:00:51]} 8. h3 {[%emt 0:00:09]} Bxf3 {[%emt 0:00:10]} 9. Qxf3 {[%emt 0:00:00]} Nd4 {[%emt 0:00:06]} 10. Qd1 {[%emt 0:00:01]} Bc5 $146 {[%emt 0:00:21]} ({Predecessor:} 10... c6 11. Rb1 Be7 12. g3 Nfe6 13. Bg2 O-O 14. O-O a5 15. Kh1 b5 16. Be3 a4 {½-½ Yilmaz,M (2536)-Palac,M (2604) Sarajevo Bosna op-A 42nd 2012 (4)}) 11. g3 {[%emt 0:00:06]} Nfe6 {[%emt 0:00:02]} 12. h4 {[%emt 0:00:01]} Qf6 {[%emt 0:00:42]} 13. Bh3 {[%emt 0:00:49]} Nb3 {[%emt 0:01:15]} 14. O-O {[%emt 0:00:02]} Nxa1 {[%emt 0:00:06]} 15. Nd5 {[%emt 0:01:23]} Qd8 {[%emt 0:00:03]} 16. Qh5 {[%emt 0:00:05]} O-O {[%emt 0:00:45]} 17. Bf5 {[%emt 0:01:09]} g6 {[%emt 0:00:13]} 18. Qg4 {[%emt 0:00:18]} Kh8 {[%emt 0:02:11]} 19. Bxe6 {[%emt 0:00:22]} fxe6 {[%emt 0:00:02]} 20. Bg5 {[%emt 0:00:02]} Qd7 {[%emt 0:00:23]} 21. Nf6 {[%emt 0:00:20]} Qg7 {[%emt 0:00:32]} (21... Qxd3 22. h5 Kg7 23. Qh4 $17) 22. Qxe6 {[%emt 0:00:04]} Nc2 {[%emt 0:00:07]} 23. Kg2 {[%emt 0:00:01]} Bd6 {[%emt 0:00:24]} 24. Ng4 {[%emt 0:00:06]} Nd4 {[%emt 0:00:05]} 25. Qc4 {[%emt 0:00:02]} h5 {[%emt 0:00:12]} 26. Nh2 {[%emt 0:00:38]} Qf7 {[%emt 0:00:06]} 27. Qc1 {[%emt 0:00:02]} Qe6 {[%emt 0:00:17]} 28. Be3 {[%emt 0:00:04]} c5 {[%emt 0:00:26]} 29. Bxd4 {[%emt 0:00:17]} cxd4 {[%emt 0:00:00]} 30. Qh6+ {[%emt 0:00:01]} Kg8 {[%emt 0:00:01]} 31. Nf3 {[%emt 0:00:00]} Be7 {[%emt 0:00:04]} 32. Nd2 {[%emt 0:00:19]} Rf7 {[%emt 0:00:06]} 33. Nf3 {[%emt 0:00:10]} Raf8 {[%emt 0:00:11]} 34. Ng1 {[%emt 0:00:01]} Bxh4 {[%emt 0:00:21]} 35. f3 {[%emt 0:00:02]} Be7 {[%emt 0:00:02]} 36. Nh3 {[%emt 0:00:01]} Rh7 {[%emt 0:00:04]} 37. Qd2 {[%emt 0:00:01]} Rc8 {[%emt 0:00:03]} 38. f4 {[%emt 0:00:01]} Rf8 {[%emt 0:00:10]} 39. Kh2 {[%emt 0:00:07]} h4 {[%emt 0:00:04]} 40. g4 {[%emt 0:00:00]} exf4 {[%emt 0:00:02]} 41. Rf3 {[%emt 0:00:08]} Qxg4 {[%emt 0:00:01]} 42. Qe2 {[%emt 0:00:02]} Bd6 {[%emt 0:00:06]} 43. Nf2 {[%emt 0:00:01]} Qe6 {[%emt 0:00:05]} (43... Qg3+ $142 44. Kh1 Rc8 (44... Qg5 $2 45. Qf1 $19) 45. b4 Rc1+ 46. Nd1 Qg4 (46... Rc2 {leads to mate.} 47. Qxc2 Qxf3+ 48. Qg2 Qxd1+ 49. Qg1 Qxg1+ 50. Kxg1 h3 51. b5 h2+ 52. Kh1 f3 53. e5 Bxe5 54. b6 f2 55. Kg2 h1=Q+ 56. Kxf2 Rh2#) 47. Kh2 h3 48. e5 Rxd1 49. Qa2+ Kh8 (49... Kg7 {is a self mate.} 50. Qf2 Bxe5 51. a4 Rh8 52. b5 Rc8 53. a5 Rcc1 54. Qf1 Rxf1 55. Rxf1 Qg2#) 50. Qf2 Bxe5 (50... Qg2+ {gets mated.} 51. Qxg2 hxg2+ 52. Kxg2 Bxe5 53. Rf2 Rxd3 54. Rf3) 51. b5 Rd2 (51... Qg3+ 52. Rxg3 fxg3+ 53. Qxg3 Rd2+ 54. Kg1 Bxg3 55. Kf1 Rf7+ 56. Kg1 Rd1#) 52. Qxd2 Qxf3 53. Kg1 Rc7 (53... h2+ 54. Qxh2 Qd1+ 55. Kg2 f3+ 56. Kf2 Rxh2#) 54. Kh2 Rc1 55. Qxc1 Qg2#) 44. Qf1 {[%emt 0:00:02]} Be5 {[%emt 0:00:02]} 45. Qg2 {[%emt 0:00:01]} Rg7 {[%emt 0:00:03]} 46. Ng4 {[%emt 0:00:02]} g5 {[%emt 0:00:02]} 47. Qh3 {[%emt 0:00:01]} Re8 {[%emt 0:00:01]} 48. Kg2 {[%emt 0:00:00]} Rc7 {[%emt 0:00:05]} 49. Rf2 {[%emt 0:00:01]} Kg7 {[%emt 0:00:01]} 50. Qf3 {[%emt 0:00:01]} Rec8 {[%emt 0:00:01]} 51. Kh3 {[%emt 0:00:07]} Rc2 {[%emt 0:00:02]} 52. Rf1 {[%emt 0:00:01]} Rc1 {[%emt 0:00:02]} 53. Rf2 {[%emt 0:00:01]} R8c2 {[%emt 0:00:01]} 0-1

[Event "CCT Chessable Masters Place D-I 2024"]
[Site "Online"]
[Date "2024.02.01"]
[Round "1"]
[White "Firouzja, Alireza"]
[Black "Yu, Yangyi"]
[Result "1-0"]
[ECO "D35"]
[WhiteElo "2759"]
[BlackElo "2720"]
[Annotator "ChessBase"]
[PlyCount "67"]
[EventDate "2024.01.12"]
[EventType "k.o."]
[EventCountry "NET"]
[SourceTitle "playchess.com"]
[Source "ChessBase"]
[SourceQuality "1"]
[TimeControl "600+2"]

1. d4 {[%emt 0:00:02]} Nf6 {[%emt 0:00:04]} 2. c4 {[%emt 0:00:01]} e6 {[%emt 0:00:01]} 3. Bf4 {[%emt 0:00:01]} Be7 {[%emt 0:00:09]} 4. Nc3 {[%emt 0:00:48]} d5 {[%emt 0:00:02]} 5. e3 {[%emt 0:00:01]} O-O {[%emt 0:00:01]} 6. Rc1 {[%emt 0:00:04]} c5 {[%emt 0:00:26]} 7. dxc5 {[%emt 0:00:24]} dxc4 {[%emt 0:00:05]} 8. Bxc4 {[%emt 0:00:14]} Qxd1+ {[%emt 0:00:07]} 9. Kxd1 {[%emt 0:00:13]} Bxc5 {[%emt 0:00:09]} 10. Nf3 {[%emt 0:00:01]} Nc6 {[%emt 0:00:22]} 11. Ke2 {[%emt 0:00:07]} Rd8 {[%emt 0:00:34]} 12. Rhd1 {[%emt 0:00:18]} Bd7 {[%emt 0:00:13]} 13. Nb5 {[%emt 0:00:27]} Bb6 {[%emt 0:01:23]} 14. Nd6 {[%emt 0:00:53]} Na5 {[%emt 0:00:59]} 15. Bd3 {[%emt 0:00:41]} Nd5 {[%emt 0:02:13]} 16. Ng5 {[%emt 0:00:04]} f5 {[%emt 0:00:11]} 17. Ngf7 {[%emt 0:00:20]} Rf8 {[%emt 0:00:16]} 18. Ne5 {[%emt 0:00:03]} Rad8 {[%emt 0:00:29]} 19. Bg5 {[%emt 0:00:10]} Ba4 {[%emt 0:00:06]} 20. Bxd8 {[%emt 0:00:20]} Bxd1+ {[%emt 0:00:01]} 21. Rxd1 {[%emt 0:00:02]} Rxd8 {[%emt 0:00:02]} 22. Ndf7 {[%emt 0:00:10]} Re8 {[%emt 0:00:31]} 23. Bxf5 {[%emt 0:00:51]} Nxe3 {[%emt 0:00:07]} 24. Bxh7+ {[%emt 0:00:05]} Kxh7 {[%emt 0:00:07]} 25. fxe3 {[%emt 0:00:01]} Rc8 {[%emt 0:00:36]} 26. Ng5+ {[%emt 0:00:33]} Kg8 {[%emt 0:00:05]} 27. Rd7 {[%emt 0:00:41]} Rd8 {[%emt 0:01:08]} 28. Re7 {[%emt 0:00:16]} Bc5 {[%emt 0:00:12]} 29. Rxe6 {[%emt 0:00:07]} Bf8 {[%emt 0:00:03]} 30. h4 {[%emt 0:00:26]} Rc8 {[%emt 0:00:02]} 31. h5 {[%emt 0:00:10]} b6 {[%emt 0:00:11]} 32. h6 {[%emt 0:00:15]} gxh6 {[%emt 0:00:09]} 33. Rg6+ {[%emt 0:00:01]} Bg7 {[%emt 0:00:02]} 34. Ne6 {[%emt 0:00:01]} 1-0

[Event "CCT Chessable Masters Place D-I 2024"]
[Site "Online"]
[Date "2024.02.01"]
[Round "1"]
[White "So, Wesley"]
[Black "Keymer, Vincent"]
[Result "1/2-1/2"]
[ECO "E32"]
[WhiteElo "2757"]
[BlackElo "2743"]
[Annotator "TA"]
[PlyCount "88"]
[EventDate "2024.01.12"]
[EventType "k.o."]
[EventCountry "NET"]
[SourceTitle "playchess.com"]
[Source "ChessBase"]
[SourceQuality "1"]
[TimeControl "600+2"]

{[%evp 20,88,46,0,51,47,48,42,4,36,79,102,212,203,195,223,210,209,222,205,172,125,114,129,187,124,135,70,61,40,52,62,65,58,43,34,48,43,43,37,68,77,215,189,210,198,222,239,234,237,231,225,387,346,393,380,372,237,217,190,154,81,348,281,268,266,255,247,790,783,701]} 1. d4 {[%emt 0:00:10]} Nf6 {[%emt 0:00:04]} 2. c4 {[%emt 0:00:03]} e6 {[%emt 0:00:01]} 3. Nc3 {[%emt 0:00:03]} Bb4 {[%emt 0:00:01]} 4. Qc2 {[%emt 0:00:01]} O-O {[%emt 0:00:25]} 5. e4 {[%emt 0:00:04]} d6 {[%emt 0:00:01]} 6. e5 {[%emt 0:00:02]} Nfd7 {[%emt 0:00:01] E32: Nimzo-Indian: Classical (4 Qc2): 4...0-0.} 7. exd6 {[%emt 0:00:57]} cxd6 {[%emt 0:00:04]} 8. Nf3 {[%emt 0:00:02]} Nc6 {[%emt 0:00:16]} 9. Bd3 {[%emt 0:00:18]} e5 {[%emt 0:00:01]} 10. O-O {[%emt 0:00:36]} exd4 {[%emt 0:00:34]} 11. Bxh7+ $146 {[%emt 0:01:45]} ({Predecessor:} 11. Nd5 Nde5 12. Nxe5 dxe5 13. f4 Bc5 14. fxe5 Nxe5 15. Bxh7+ Kh8 16. Kh1 Qh4 17. Bf5 {½-½ Masset,J (2129)-Marcuzzo,G (2255) EU-ch 2022 pr02 email}) 11... Kh8 {[%emt 0:00:01]} 12. Nd5 {[%emt 0:00:01]} Nde5 {[%emt 0:00:05]} 13. Nxe5 $1 {[%emt 0:01:05]} dxe5 {[%emt 0:00:03]} 14. Bf5 {[%emt 0:00:01]} Bd6 {[%emt 0:02:35]} 15. f4 $1 {[%emt 0:00:13]} g6 {[%emt 0:02:15]} (15... Kg8 $16) 16. Bxc8 $1 $18 {[%emt 0:00:14]} Rxc8 {[%emt 0:00:00]} 17. f5 $1 {[%emt 0:00:17]} Qh4 {[%emt 0:00:07]} 18. g3 $1 {[%emt 0:00:02]} (18. fxg6 $2 fxg6 19. Rxf8+ (19. Qxg6 $2 Rxf1+ 20. Kxf1 Rf8+ 21. Ke2 Rf2+ 22. Kd3 Bf8 $19) 19... Rxf8 $19) 18... Qh5 {[%emt 0:01:48]} 19. Nf6 $1 {[%emt 0:00:33]} Qh3 {[%emt 0:00:02]} 20. Ne4 {[%emt 0:00:29]} (20. fxg6 Kg7 $16) ({Better is} 20. Bg5 $18) 20... Be7 {[%emt 0:00:34]} 21. f6 {[%emt 0:00:30]} Bb4 {[%emt 0:00:05]} (21... d3 $16 {is a better defense.} 22. Qg2 (22. Qxd3 Bb4 $16) 22... Qxg2+ 23. Kxg2 Bb4) 22. a3 {[%emt 0:00:11]} ({White should try} 22. Qd3 $1 $18) 22... d3 $16 {[%emt 0:00:25]} 23. Qxd3 {[%emt 0:00:04]} ({White should play} 23. Qg2 $16 Qxg2+ 24. Kxg2) 23... Rfd8 $14 {[%emt 0:00:05]} 24. Qe3 {[%emt 0:00:27]} Bf8 {[%emt 0:00:04]} 25. Ng5 {[%emt 0:00:07]} Qd7 {[%emt 0:00:01]} 26. Qe4 {[%emt 0:00:01]} Kg8 {[%emt 0:00:33]} 27. Be3 {[%emt 0:00:01]} Bh6 {[%emt 0:00:01]} 28. Qh4 {[%emt 0:00:51]} Bxg5 {[%emt 0:00:02]} 29. Qxg5 {[%emt 0:00:00]} Qh3 {[%emt 0:00:01]} 30. Rad1 {[%emt 0:00:04]} Qh5 {[%emt 0:00:37]} (30... Na5 $16) 31. Qxh5 {[%emt 0:00:19]} gxh5 {[%emt 0:00:00]} 32. Rxd8+ $1 {[%emt 0:00:02]} Rxd8 {[%emt 0:00:00]} 33. Rf5 {[%emt 0:00:01]} Rd3 {[%emt 0:00:05]} 34. Kf2 {[%emt 0:00:06]} Rb3 {[%emt 0:00:06]} 35. Bc1 {[%emt 0:00:09]} a5 $2 {[%emt 0:00:06]} (35... e4 {was called for.} 36. Rg5+ (36. Rxh5 Rf3+ 37. Kg2 Rxf6 $18) 36... Kf8 37. Rxh5 Rf3+ 38. Kg2 Rxf6 39. Rh8+ Kg7) 36. Rg5+ $18 {[%emt 0:00:12]} (36. Rxh5 e4 37. Rg5+ Kh8 $18) 36... Kf8 {[%emt 0:00:01]} 37. Rxh5 {[%emt 0:00:01]} Ke8 {[%emt 0:00:00]} 38. g4 {[%emt 0:00:04]} Kd7 {[%emt 0:00:01]} 39. g5 {[%emt 0:00:12]} Ke6 {[%emt 0:00:01] [#]} 40. Rh8 {[%emt 0:00:05]} (40. Kg2 $142 $1) 40... Nd4 $2 {[%emt 0:00:01][%mdl 8192]} (40... e4 $16 {was worth a try.}) 41. Re8+ {[%emt 0:00:04]} Kf5 {[%emt 0:00:01] [#]} 42. Re7 $1 {[%emt 0:00:01]} Rf3+ {[%emt 0:00:10]} 43. Kg2 {[%emt 0:00:01]} Rd3 $2 {[%emt 0:00:02]} (43... e4 44. Bd2 (44. Rxb7 e3 $14) (44. Rxf7 Nb3 $18) 44... Rd3 45. Bxa5 e3 (45... Nc6 $2 46. Bc3 $18) 46. Rxf7 (46. Rxb7 Rd2+ 47. Kh3 Rf2 $18) 46... Rd2+ 47. Kh3 (47. Bxd2 $2 exd2 48. Rxb7 d1=Q $19) 47... Rf2) 44. Rxf7 $18 {[%emt 0:00:04]} ({Less strong is} 44. Rxb7 Ne2 $16) 44... Rd1 {[%emt 0:00:01]} 1/2-1/2

[Event "CCT Chessable Masters Place D-I 2024"]
[Site "Online"]
[Date "2024.02.01"]
[Round "1"]
[White "Keymer, Vincent"]
[Black "So, Wesley"]
[Result "0-1"]
[ECO "D35"]
[WhiteElo "2743"]
[BlackElo "2757"]
[Annotator "TA"]
[PlyCount "84"]
[EventDate "2024.01.12"]
[EventType "k.o."]
[EventCountry "NET"]
[SourceTitle "playchess.com"]
[Source "ChessBase"]
[SourceQuality "1"]
[TimeControl "600+2"]

{[%evp 18,84,36,25,21,21,26,0,0,0,0,-10,0,-16,0,-10,0,0,0,-16,-16,-18,-18,-50,-60,-62,-28,-44,0,-21,0,0,0,0,-8,-49,-14,-19,-23,-25,103,-70,-77,-89,-67,-82,-114,-161,-60,-175,-178,-170,-185,-275,-253,-245,-185,-170,-146,-29984,-29981,-29981,-1100,-29982,-29983,-29983,-29984,-29984,-29985]} 1. c4 {[%emt 0:00:03]} e6 {[%emt 0:00:07]} 2. Nc3 {[%emt 0:00:08]} d5 {[%emt 0:00:00]} 3. d4 {[%emt 0:00:01]} Nf6 {[%emt 0:00:02]} 4. cxd5 {[%emt 0:00:05]} exd5 {[%emt 0:00:00]} 5. Bg5 {[%emt 0:00:02]} c6 {[%emt 0:00:03]} 6. e3 {[%emt 0:00:02]} Bf5 {[%emt 0:00:18]} 7. Qf3 {[%emt 0:00:34]} Bg6 {[%emt 0:00:02]} 8. Bxf6 {[%emt 0:00:02]} Qxf6 {[%emt 0:00:00]} 9. Qxf6 {[%emt 0:00:01]} gxf6 {[%emt 0:00:00]} 10. Kd2 {[%emt 0:00:00]} Nd7 {[%emt 0:00:27]} 11. Nge2 {[%emt 0:00:02]} Nb6 {[%emt 0:00:37]} 12. Ng3 {[%emt 0:00:16]} h5 {[%emt 0:00:31][%cal Bh7h5,Bh5h4][%mdl 32] The position is equal.} 13. Bd3 {[%emt 0:00:47]} h4 {[%emt 0:00:50]} 14. Nge2 {[%emt 0:00:08]} Bd6 {[%emt 0:00:19]} 15. b3 {[%emt 0:01:01]} a5 {[%emt 0:00:05]} 16. a4 {[%emt 0:00:07]} Bxd3 {[%emt 0:00:23]} 17. Kxd3 {[%emt 0:00:03]} f5 {[%emt 0:00:00]} 18. Ng1 {[%emt 0:02:31]} Nd7 {[%emt 0:00:08][%cal Bb6d7,Bd7f6,Bf6e4][%mdl 32]} 19. Nf3 {[%emt 0:00:28]} Nf6 {[%emt 0:00:02]} 20. Raf1 {[%emt 0:00:34]} Ne4 {[%emt 0:00:07]} 21. Kc2 {[%emt 0:00:02]} Ke7 {[%emt 0:00:04] Black is more active.} 22. g3 {[%emt 0:00:05]} h3 {[%emt 0:01:45]} 23. Ng1 {[%emt 0:00:21]} Bb4 {[%emt 0:00:26]} (23... b5 $5) 24. Nge2 {[%emt 0:00:05]} Rac8 {[%emt 0:00:24]} 25. Kb2 {[%emt 0:00:28]} b6 {[%emt 0:00:14]} 26. Nb1 {[%emt 0:00:40]} c5 {[%emt 0:00:09]} 27. f3 {[%emt 0:00:25]} Nd2 {[%emt 0:00:36]} 28. Rf2 {[%emt 0:00:06]} Kd6 {[%emt 0:00:31]} (28... cxd4 $11 29. Nxd4 Nxb1 30. Kxb1 Kf6) 29. Nec3 $2 {[%emt 0:00:43]} (29. Nbc3 $1 $16 {aiming for Rd1.} c4 30. Rd1 Nxb3 31. e4) 29... Nxb1 $15 {[%emt 0:00:23]} 30. Nb5+ {[%emt 0:00:03] [#]} Kd7 $1 {[%emt 0:00:04]} 31. Kxb1 {[%emt 0:00:01]} Rhe8 $36 {[%emt 0:00:06][%mdl 2048] Black is on the roll.} 32. Re2 {[%emt 0:00:09]} (32. e4 $17) 32... c4 {[%emt 0:00:38]} (32... f4 $19 33. e4 (33. gxf4 $2 {loses.} cxd4 34. Nxd4 Rc3 $19) 33... cxd4 34. Nxd4 fxg3 (34... dxe4 35. fxe4 fxg3 36. hxg3 $17) 35. hxg3 Rc3 36. exd5 (36. Rxh3 Rd3 $17) 36... Rxe2 37. Nxe2 Re3 (37... Rxf3 38. Rxh3 Rxb3+ 39. Kc2 $17) (37... Rxb3+ 38. Kc2 $17)) 33. Rd1 {[%emt 0:00:51]} (33. bxc4 $1 $15 Rxc4 34. Rc1) 33... cxb3 $19 {[%emt 0:00:08][%cal Oc8c2] ...Rc2! would now be deadly.} 34. Rd3 {[%emt 0:00:01]} f4 {[%emt 0:00:09]} 35. Rxb3 {[%emt 0:00:11]} (35. gxf4 $142 Rg8 36. Rxb3) 35... fxg3 {[%emt 0:00:25]} 36. hxg3 {[%emt 0:00:00]} Rg8 {[%emt 0:00:01]} 37. g4 {[%emt 0:00:03]} f5 {[%emt 0:00:01]} 38. gxf5 {[%emt 0:00:06][%mdl 8192] This costs White the game.} (38. Rh2 $17) 38... Rg1+ {[%emt 0:00:02]} 39. Ka2 {[%emt 0:00:00]} Rg2 {[%emt 0:00:10]} (39... Rcg8 $142 40. Rbb2 R8g2 41. Nc7 Rxe2 (41... Kxc7 $2 42. Rec2+ Kb7 43. Kb3 $19) 42. Rxe2 Rg2 (42... Kxc7 $2 43. Rc2+ Kd7 44. Kb3 $19) 43. Rxg2 hxg2 44. Nxd5 g1=Q (44... g1=R $2 45. Kb3 $19) 45. e4 Qf2+ (45... Qxd4 46. Kb3 Qd3+ 47. Kb2 Ba3+ 48. Ka2 Bc1 49. Nxb6+ Kc6 50. Nc4 Qxc4+ 51. Kb1 Qc3 52. Ka2 Qb2#) 46. Kb3 Qxf3+ (46... Qxd4 47. Kc2 Qc4+ 48. Kb1 Qe2 49. Nf4 Qd2 50. e5 Bc3 51. e6+ Kc8 52. Nd3 Qxd3+ 53. Kc1 Qd2+ 54. Kb1 Qb2#) 47. Kc4 Qe2+ (47... Qxe4 $2 {too greedy.} 48. Nf6+ Kc6 49. Nxe4 $18) 48. Kb3 Qd3+ (48... Qxe4 49. Nf6+ Kd6 50. Nxe4+ Kd5 51. Nf6+ Kxd4 52. Nd7 $11) 49. Kb2 Ba3+ (49... Qxd4+ 50. Ka2 Qd3 51. Kb2 Ba3+ 52. Ka2 Bc1 53. Nxb6+ Kc7 54. Nc4 Qxc4+ 55. Kb1 Qc3 56. Ka2 Qb2#) 50. Ka2 Bc1 (50... Qxe4 51. Nf6+ Kc6 52. Nxe4 $14) 51. Nxb6+ Kc7 52. Nc4 Qxc4+ 53. Kb1 Qc3 54. f6 Qb2#) 40. Rbb2 {[%emt 0:00:04]} Rcg8 {[%emt 0:00:10] Black mates.} 41. Kb3 {[%emt 0:00:03]} Rxe2 {[%emt 0:00:02]} 42. Rxe2 {[%emt 0:00:00] [#]} Rg2 $1 {[%emt 0:00:02] Weighted Error Value: White=0.49/Black=0.27 (precise) .  Loses game:     	White=1     	---        Mistake:       	White=4     	Black=2      Inaccurate:     	White=3     	Black=3      OK:         	White=9     	Black=10     Best:        	White=1     	Black=2      Strong:       	---       	Black=1} 0-1

[Event "CCT Chessable Masters Place D-I 2024"]
[Site "Online"]
[Date "2024.02.01"]
[Round "1"]
[White "Yu, Yangyi"]
[Black "Firouzja, Alireza"]
[Result "1/2-1/2"]
[ECO "C65"]
[WhiteElo "2720"]
[BlackElo "2759"]
[Annotator "TA"]
[PlyCount "120"]
[EventDate "2024.01.12"]
[EventType "k.o."]
[EventCountry "NET"]
[SourceTitle "playchess.com"]
[Source "ChessBase"]
[SourceQuality "1"]
[TimeControl "600+2"]

{[%evp 35,120,-27,6,8,14,10,6,0,0,0,0,0,0,-9,0,0,0,0,12,0,7,0,8,5,35,11,13,0,1,0,0,0,0,0,0,0,0,-16,-19,-44,0,0,0,-101,-99,-129,0,0,0,-100,-68,-83,-74,-229,-207,-356,-333,-1329,-1306,-1135,-1115,-1040,-973,-1660,-1495,-5065,-5102,-5097,-5069,-487,0,0,0,0,0,0,0,0,0,0,0,0,0,0,0,0,0]} 1. e4 {[%emt 0:00:03]} e5 {[%emt 0:00:04]} 2. Nf3 {[%emt 0:00:01]} Nc6 {[%emt 0:00:00]} 3. Bb5 {[%emt 0:00:05]} Nf6 {[%emt 0:00:12]} 4. d3 {[%emt 0:00:01]} Bc5 {[%emt 0:00:01]} 5. O-O {[%emt 0:00:01]} Nd4 {[%emt 0:00:08]} 6. Nxd4 {[%emt 0:00:02]} Bxd4 {[%emt 0:00:01]} 7. Ba4 {[%emt 0:00:01] C65: Ruy Lopez: Berlin Defence (3...Nf6), unusual lines and 4 0-0 Bc5.} O-O {[%emt 0:00:45]} 8. c3 {[%emt 0:00:03]} Bb6 {[%emt 0:00:02]} 9. Bg5 {[%emt 0:00:02]} h6 {[%emt 0:00:10]} 10. Bh4 {[%emt 0:00:01]} d6 {[%emt 0:00:11]} 11. Nd2 {[%emt 0:00:04]} a6 {[%emt 0:00:31]} 12. Bb3 $146 {[%emt 0:00:10]} ({Predecessor:} 12. h3 Bd7 13. Bxd7 Qxd7 14. Bxf6 gxf6 15. Qh5 Kh7 16. Kh1 Rg8 17. Nc4 Rg5 18. Nxb6 cxb6 {1-0 Przybylowicz,K (1831)-Kopoczynski,L Gdansk op 12th  2010 (1)}) 12... g5 {[%emt 0:00:20]} 13. Bg3 {[%emt 0:00:02]} Bg4 {[%emt 0:00:01]} 14. Qe1 {[%emt 0:00:05]} Nh5 {[%emt 0:00:05]} 15. Nc4 {[%emt 0:00:58]} Ba7 {[%emt 0:00:02]} 16. Ne3 {[%emt 0:00:17]} Be6 {[%emt 0:00:06]} 17. Kh1 {[%emt 0:00:11]} Qd7 {[%emt 0:00:48]} 18. Bc2 {[%emt 0:03:09]} Ng7 {[%emt 0:01:24]} 19. f3 {[%emt 0:00:24]} f5 {[%emt 0:00:08]} 20. exf5 {[%emt 0:00:02]} Nxf5 {[%emt 0:00:01]} 21. Bf2 {[%emt 0:00:01]} Nxe3 {[%emt 0:00:21]} 22. Bxe3 {[%emt 0:00:00]} Bxe3 {[%emt 0:00:01]} 23. Qxe3 {[%emt 0:00:00]} Rae8 {[%emt 0:00:04]} 24. d4 {[%emt 0:00:46]} exd4 {[%emt 0:00:28]} 25. Qxd4 {[%emt 0:00:01]} Qg7 {[%emt 0:02:48]} 26. Qd2 {[%emt 0:00:51]} Kh8 {[%emt 0:00:13]} 27. h3 {[%emt 0:00:08]} Bf5 {[%emt 0:00:15]} 28. Rae1 {[%emt 0:00:06]} Bxc2 {[%emt 0:00:07]} 29. Qxc2 {[%emt 0:00:01]} d5 {[%emt 0:00:04]} 30. Qb3 {[%emt 0:00:11]} c6 {[%emt 0:00:02]} 31. Qb6 {[%emt 0:00:03]} Re7 {[%emt 0:00:08]} 32. Rxe7 {[%emt 0:00:27]} Qxe7 {[%emt 0:00:01]} 33. a4 {[%emt 0:00:02]} Kg8 {[%emt 0:00:05]} 34. a5 {[%emt 0:00:02]} Rf7 {[%emt 0:00:13]} 35. b3 {[%emt 0:01:01]} Qe5 {[%emt 0:00:05]} 36. c4 {[%emt 0:00:23]} d4 {[%emt 0:00:19]} 37. Qd8+ {[%emt 0:00:01]} Rf8 {[%emt 0:00:04]} 38. Qd7 {[%emt 0:00:06]} Rf7 {[%emt 0:00:01]} 39. Qc8+ {[%emt 0:00:43]} (39. Qd8+ $11 Rf8 40. Qd7) 39... Kg7 {[%emt 0:00:02]} 40. Qd8 {[%emt 0:00:13]} Rf8 {[%emt 0:00:07]} (40... c5 $1 $17 41. b4 cxb4) 41. Qb6 $11 {[%emt 0:00:02]} Rf7 {[%emt 0:00:02]} 42. Qb4 {[%emt 0:00:13]} (42. Qd8 $11 {keeps the balance.}) 42... c5 {[%emt 0:00:03]} 43. Qd2 {[%emt 0:00:09] [#]} Re7 $1 {[%emt 0:00:09]} 44. b4 $2 {[%emt 0:00:02]} (44. f4 $17 gxf4 45. Rxf4) 44... Qe2 $19 {[%emt 0:00:10]} 45. Qxe2 {[%emt 0:00:13]} (45. Rf2 $142 Qxc4 46. bxc5) 45... Rxe2 $19 {[%emt 0:00:00]} 46. bxc5 $2 {[%emt 0:00:02] [#]} (46. Kg1 cxb4 47. Rb1) 46... d3 $1 $19 {[%emt 0:00:05]} 47. Rd1 {[%emt 0:00:04]} d2 {[%emt 0:00:02]} 48. Kh2 {[%emt 0:00:00]} Kf6 {[%emt 0:00:03]} 49. Kg3 {[%emt 0:00:04]} Ke5 {[%emt 0:00:07]} 50. f4+ {[%emt 0:00:01]} gxf4+ {[%emt 0:00:07]} 51. Kf3 {[%emt 0:00:01]} Re3+ {[%emt 0:00:02]} 52. Kf2 {[%emt 0:00:04]} Rc3 $2 {[%emt 0:00:13]} (52... Rd3 $19 {...Kd4 would now be deadly.} 53. Ke2 Kd4 54. Rxd2 Rxd2+ 55. Kxd2 Kxc4) 53. Rxd2 $11 {[%emt 0:00:01]} Rxc4 {[%emt 0:00:00]} 54. Rd7 {[%emt 0:00:03]} Rxc5 {[%emt 0:00:02]} 55. Rxb7 {[%emt 0:00:00]} Rxa5 {[%emt 0:00:03]} 56. Rh7 {[%emt 0:00:02]} Ra2+ {[%emt 0:00:01]} 57. Kf3 {[%emt 0:00:00]} Ra3+ {[%emt 0:00:00]} 58. Kf2 {[%emt 0:00:01]} Ra2+ {[%emt 0:00:01]} 59. Kf3 {[%emt 0:00:00]} Ra3+ {[%emt 0:00:01]} 60. Kf2 {[%emt 0:00:01]} Ra2+ {[%emt 0:00:00]} 1/2-1/2